[Event "ESP-chT Honor Division 2022"]
[Site "Linares"]
[Date "2022.09.20"]
[Round "4.2"]
[White "Santos Latasa, Jaime"]
[Black "Alekseenko, Kirill"]
[Result "1-0"]
[ECO "E32"]
[WhiteElo "2680"]
[BlackElo "2707"]
[Annotator "TA"]
[PlyCount "119"]
[EventDate "2022.09.17"]
[EventType "team-tourn"]
[EventCountry "ESP"]
[SourceTitle "playchess.com"]
[Source "ChessBase"]
[SourceQuality "1"]
[TimeControl "5400+30"]

{[%evp 11,119,7,24,12,24,7,44,55,50,39,74,43,95,97,112,97,145,101,166,169,152,154,168,166,141,127,180,163,169,160,194,132,142,147,178,179,239,228,212,233,230,209,197,195,216,223,235,231,220,203,241,207,310,249,278,114,114,108,118,109,118,116,111,72,66,73,71,90,97,84,136,136,136,136,175,139,160,170,290,292,385,378,380,351,600,560,749,748,718,643,465,449,806,714,2874,2629,2462,2148,1781,1295,29969,29966,29965,29966,29973,29975,29972,29975,29969,29943]} 1. d4 {[%emt 0:00:03]} Nf6 {[%emt 0:01:01]} 2. c4 {[%emt 0:00:06]} e6 {[%emt 0:00:15]} 3. Nc3 {[%emt 0:00:13]} Bb4 {[%emt 0:00:25]} 4. Qc2 {[%emt 0:00:09]} O-O {[%emt 0:02:45]} 5. a3 {[%emt 0:00:18]} Bxc3+ {[%emt 0:00:53]} 6. Qxc3 {[%emt 0:00:08]} h6 {[%emt 0:06:37] CPLX 2.0 17 (b7-b6) (=17) 6...d5 is a critical line.} 7. Nf3 {[%emt 0:05:03] CPLX 2.0 12 (Qc3-c2) (=12). E32: Nimzo-Indian: Classical (4 Qc2): 4...0-0.} b6 {[%emt 0:02:09] BESTDEEP} 8. g4 {[%emt 0:11:20] CPLX 2.0 17 (b2-b3) (=15)} Bb7 {[%emt 0:17:19] CPLX 2.0 37 (d7-d5) (=18)} 9. Rg1 {[%emt 0:07:01] BESTDEEP. White is slightly better.} Ne4 {[%emt 0:09:33] [#] CPLX 2.1} 10. Qe3 $146 {[%emt 0:05:20] CPLX 2.6} ({Predecessor:} 10. Qc2 Ng5 11. Nxg5 hxg5 12. e4 d6 13. Be3 Nd7 14. Bd3 e5 15. O-O-O Qe7 16. d5 {½-½ (59) Mannberg,H (1884)-Patola,E (1932) Helsinki 2013}) 10... d6 {[%emt 0:01:26] CPLX 2.3 35 (Qd8-e7) (=18)} 11. g5 {[%emt 0:01:03] CPLX 2.4 31 (Bf1-g2) (=12)} h5 {[%emt 0:01:55] CPLX 2.7 52 (Ne4xg5) (=24)} (11... Nxg5 $14 12. Nxg5 hxg5) 12. g6 $16 {[%emt 0:00:25] CPLX 2.5} Qf6 {[%emt 0:19:44] BESTDEEP} 13. gxf7+ {[%emt 0:13:01] CPLX 3.8} Qxf7 {[%emt 0:00:54] MISS-Rf8xf7 48 (Rf8xf7) (=24)} (13... Rxf7 $142 14. Bh3 Nd7) 14. Bg2 {[%emt 0:03:27][%cal Bf1g2,Bg2b7,Bb7c6,Bc6e4,Be4g6][%mdl 32] [#] Strongly threatening Ng5. CPLX 3.3 44 (Bf1-h3) (=13)} Nd7 {[%emt 0:09:31] CPLX 2.9 65 (c7-c5) (=28)} (14... c5 $16 {was called for.}) 15. Ng5 $18 {[%emt 0:05:29] EASY} Nxg5 {[%emt 0:00:09] EASY} 16. Bxb7 {[%emt 0:00:05] EASY} Rab8 {[%emt 0:00:25] EASY} 17. Bc6 {[%emt 0:02:31] CPLX 3.7} Nh7 {[%emt 0:00:15] BESTDEEP} (17... Nh3 $2 18. Bxd7 Nf4 19. Qxf4 Qxd7 20. Qh6 $18) 18. Be4 {[%emt 0:03:57] White is more active. CPLX 3.2 14 (Qe3-g3) (=10)} Ndf6 {[%emt 0:07:23] CPLX 4.1 53 (Qf7-e7) (=24)} (18... Qe7 $16 {might work better.}) 19. Bg6 {[%emt 0:01:12] This bishop pair is nice. EASY} Qe7 {[%emt 0:00:28] CPLX 3.4 6 (Qf7-d7) (=22)} 20. Bd2 {[%emt 0:01:56] CPLX 3.1 9 (d4-d5) (=9)} c5 {[%emt 0:03:19] CPLX 3.1 34 (b6-b5) (=23)} 21. h3 {[%emt 0:02:53] CPLX 3.3 62 (d4xc5) (=13)} ({Better is} 21. dxc5 $18 bxc5 22. Bc3) 21... cxd4 $16 {[%emt 0:01:24] CPLX 3.3} 22. Qxd4 {[%emt 0:00:19] RECAPT} e5 {[%emt 0:01:08] CPLX 3.3 31 (Rb8-c8) (=22)} 23. Qd3 {[%emt 0:00:30] CPLX 3.1} a5 {[%emt 0:07:35] CPLX 3.3 60 (Rb8-b7) (=24)} (23... Rb7 {is a better defense.} 24. Bb4 Rd8) 24. O-O-O $18 {[%emt 0:01:40] CPLX 3.4} Kh8 {[%emt 0:01:46] CPLX 3.4} 25. Kb1 {[%emt 0:00:47] CPLX 3.2} Rfd8 {[%emt 0:01:34] CPLX 3.2 0 (Rb8-c8) (=22)} 26. Bxh7 {[%emt 0:04:27] CPLX 3.2 21 (Rg1-g2) (=11)} Nxh7 {[%emt 0:00:06] RECAPT} 27. Rg6 {[%emt 0:00:05] CPLX 3.1} Rd7 {[%emt 0:03:14] CPLX 2.6 21 (Nh7-f8) (=21)} 28. Be3 {[%emt 0:02:04] BESTDEEP} Nf6 {[%emt 0:00:20] CPLX 2.7 12 (Nh7-f8) (=20)} 29. Bg5 {[%emt 0:02:12] CPLX 2.8} Rf8 {[%emt 0:00:02] CPLX 2.9} 30. Rg1 {[%emt 0:01:01] BESTDEEP} Qe6 {[%emt 0:00:48] CPLX 2.9 38 (a5-a4) (=20)} 31. Qf3 {[%emt 0:03:11] Bxf6 is the strong threat. CPLX 3.0 34 (Kb1-a1) (=10)} e4 {[%emt 0:00:18] CPLX 3.0 103 (Rd7-c7) (=24)} (31... Rc7 $142 32. Bxf6 Rxf6 33. Qxh5+ Kg8 34. Rxf6 Qxf6 35. Qe8+ Qf8 36. Qe6+ Kh7 37. Qg6+ Kg8 38. Qe6+ Kh7 39. Qg6+ Kg8) 32. Qg3 {[%emt 0:02:36] And now Bxf6 would win. CPLX 3.1 61 (Qf3-e3) (=12)} (32. Qxh5+ Nxh5 33. Rxe6 Rxf2 $16) 32... e3 {[%emt 0:01:04] CPLX 2.7 29 (Qe6-e5) (=24)} (32... Qxc4 33. Bxf6 Rxf6 34. Rxg7 e3 35. Rxd7 Qe4+ 36. Ka2 Qc4+ 37. Ka1) 33. Bxf6 {[%emt 0:02:05] CPLX 4.3 164 (Bg5xe3) (=17)} (33. Qxe3 $6 Qf5+ 34. Qd3 Qxd3+ 35. exd3 d5 $18) (33. Bxe3 $18 {has better winning chances.} Rff7 34. Bd4 (34. Bxb6 Qxe2 35. Qe3 Qxe3 $16) 34... Qe4+ 35. Qd3) 33... Rxf6 $16 {[%emt 0:00:39] RECAPT} 34. Rxf6 {[%emt 0:01:34] Dancing on a razor blade. RECAPT} ({But not} 34. fxe3 $6 Qe4+ 35. Ka2 (35. Ka1 Rxg6 36. Qxg6 Qxg6 $11) 35... Qxc4+ 36. Ka1 Qf7 $11) (34. Rxg7 $6 exf2 35. Rg8+ Kh7 36. Rg7+ Kh8 37. Rg8+ Kh7 38. Rg7+ Kh8 $11) 34... Qxf6 {[%emt 0:00:05] RECAPT} 35. Qxe3 $18 {[%emt 0:00:49][%mdl 4096] Endgame Hoping for Qe8+. KQR-KQR. CPLX 3.3} Re7 {[%emt 0:00:15] Against Qe8+. EASY} 36. Qg5 {[%emt 0:00:50] CPLX 3.3 2 (Qe3xb6) (=16)} Qf7 {[%emt 0:00:47] BESTDEEP} 37. e3 {[%emt 0:00:59] CPLX 2.6 39 (Qg5-g6) (=16)} Kh7 {[%emt 0:00:46] BESTDEEP} 38. Rd1 {[%emt 0:02:32] BESTDEEP} Re5 {[%emt 0:00:15] White now steadily converts the win. CPLX 2.6} 39. Qg2 {[%emt 0:00:11] CPLX 2.9} Qf5+ {[%emt 0:00:24] CPLX 2.5} 40. Ka1 {[%emt 0:00:22] CPLX 2.7} b5 {[%emt 0:00:58] CPLX 2.7 52 (Qf5-e6) (=20)} (40... Qe6 $142) 41. cxb5 $16 {[%emt 0:00:43] EASY} ({Don't play} 41. Rxd6 bxc4 42. Rc6 Qe4 43. Qxe4+ Rxe4 $14) 41... Rxb5 {[%emt 0:00:04] RECAPT} 42. f4 $40 {[%emt 0:00:17][%mdl 128] White has strong attack. CPLX 3.0} Rc5 {[%emt 0:00:47] CPLX 3.0 39 (Qf5-e6) (=20)} 43. Rg1 {[%emt 0:01:01][%csl Gg1][%cal Rg2g7] CPLX 2.8 36 (Rd1xd6) (=15)} Rc7 {[%emt 0:00:34] CPLX 3.8 21 (Qf5-f6) (=20)} 44. Qg5 {[%emt 0:01:35] CPLX 3.2 0 (Qg2-f3) (=14)} Qxg5 {[%emt 0:00:36] MISSDEEP-g7-g6 120 (g7-g6) (=22)} (44... g6 $142 45. Qxf5 gxf5) 45. Rxg5 $18 {[%emt 0:00:19] KR-KR. RECAPT} ({Not} 45. fxg5 Kg6 $11) 45... g6 {[%emt 0:00:11] CPLX 2.0 93 (a5-a4) (=24)} 46. f5 {[%emt 0:01:55] BESTDEEP} gxf5 {[%emt 0:00:04] CPLX 2.0 2 (a5-a4) (=24)} 47. Rxf5 {[%emt 0:00:05] RECAPT} Kg6 $2 {[%emt 0:00:04] CPLX 2.0 249 (a5-a4) (=29)} (47... a4 48. Rxh5+ Kg7) 48. Rxa5 {[%emt 0:00:17] CPLX 2.0=>BLUNDERREACT} Rc1+ {[%emt 0:00:34] EVAL 189 (h5-h4) (=33)} 49. Ka2 {[%emt 0:00:06] EVAL} Rh1 {[%emt 0:00:03] EVAL} 50. Rd5 {[%emt 0:00:37] CPLX 2.0 75 (a3-a4) (=14)} Rxh3 {[%emt 0:00:08] EASY} 51. Rxd6+ {[%emt 0:00:05] EASY} Kg5 {[%emt 0:00:14] EVAL 357 (Kg6-f7) (=38)} (51... Kf7 $142 52. a4 h4) 52. b4 {[%emt 0:02:26][%cal Bb2b4,Bb4b5,Bb5b6][%mdl 32] EVAL} Rxe3 {[%emt 0:00:06] BEVAL 400 (Rh3-h2) (=46)} 53. b5 {[%emt 0:00:16] BEVAL} h4 {[%emt 0:00:16] BEVAL 0 (Kg5-f4) (=45)} 54. a4 {[%emt 0:01:21] BEVAL} h3 {[%emt 0:00:47] BEVAL 0 (Re3-e4) (=44)} 55. Rd1 {[%emt 0:00:07] BEVAL} h2 {[%emt 0:02:51] [#] RELBLUND 400 (Kg5-g4) (=51)} 56. Rh1 $1 {[%emt 0:00:37] DEEPSTRONG. White mates.} Re2+ {[%emt 0:00:13] RELBLUND 0 (Re3-e4) (=50)} 57. Kb3 {[%emt 0:00:17] EASY} Kf4 {[%emt 0:00:36] RELBLUND 7 (Re2-e3) (=49)} 58. b6 {[%emt 0:00:27] CPLX 2.9} Re3+ {[%emt 0:00:45] RELBLUND} 59. Kc4 {[%emt 0:00:44] CPLX 3.1} Re2 {[%emt 0:00:34] MISS-Re3-e4 0 (Re3-e4) (=48)} 60. a5 {[%emt 0:00:33] Weighted Error Value: White=0.16 (very precise) /Black=0.41} 1-0

[Event "ESP-chT Honor Division 2022"]
[Site "Linares"]
[Date "2022.09.20"]
[Round "4.3"]
[White "Korobov, Anton"]
[Black "Pichot, Alan"]
[Result "1-0"]
[ECO "A18"]
[WhiteElo "2671"]
[BlackElo "2641"]
[Annotator "TA"]
[PlyCount "135"]
[EventDate "2022.09.17"]
[EventType "team-tourn"]
[EventCountry "ESP"]
[SourceTitle "playchess.com"]
[Source "ChessBase"]
[SourceQuality "1"]
[TimeControl "5400+30"]

{[%evp 16,135,14,16,7,10,33,11,33,33,35,37,36,0,2,0,19,16,21,6,19,14,68,48,43,21,26,14,16,21,27,28,31,27,9,8,29,1,40,35,45,50,50,66,89,70,82,75,79,74,60,81,75,68,75,74,85,0,136,131,131,146,147,152,187,184,192,189,232,232,272,198,200,188,170,189,196,198,260,233,288,290,287,289,274,78,86,95,238,216,238,238,231,217,548,513,1433,1409,1991,373,6075,29942,12451,12499,6621,6327,29969,29970,29970,29971,29971,29972,29972,29973,29973,29974,29975,29977,29976,29963,12432,4726]} 1. c4 {[%emt 0:00:04]} Nf6 {[%emt 0:00:13]} 2. Nc3 {[%emt 0:00:13]} e6 {[%emt 0:00:42]} 3. e4 {[%emt 0:00:07]} d5 {[%emt 0:00:13]} 4. e5 {[%emt 0:00:17]} d4 {[%emt 0:00:05]} 5. exf6 {[%emt 0:00:09]} dxc3 {[%emt 0:00:06]} 6. bxc3 {[%emt 0:00:11]} Qxf6 {[%emt 0:00:07]} 7. Nf3 {[%emt 0:00:06]} b6 {[%emt 0:01:05]} 8. d4 {[%emt 0:00:29]} Bb7 {[%emt 0:00:28]} 9. Bd3 $1 {[%emt 0:00:08] Threatens to win with Bg5. BESTDEEP The main line 9.Bd3 scores better than 9.Be2.} h6 {[%emt 0:01:31] Against Bg5. BESTDEEP. A18: English Opening: Flohr-Mikenas System (1 c4 Nf6 2 Nc3 e6 3 e4).} 10. O-O {[%emt 0:00:34] BESTDEEP} Nd7 {[%emt 0:01:03] Inhibits Ne5. CPLX 2.7 23 (Bb7xf3) (=12)} 11. Re1 {[%emt 0:01:34] CPLX 2.5 22 (Nf3-d2) (=7)} Bd6 {[%emt 0:00:40] CPLX 2.6 22 (Bb7xf3) (=15). The position is equal.} (11... Bxf3 $5 12. Qxf3 Qxf3 13. gxf3 Bd6 $11) 12. Nd2 {[%emt 0:04:57] BESTDEEP} Qh4 {[%emt 0:01:13] DEEPSTRONG} (12... Bxh2+ $2 13. Kxh2 Qxf2 14. Qe2 (14. Nf3 Bxf3 15. Qd2 Qh4+ 16. Kg1 Bb7 $17) 14... Qh4+ 15. Kg1 $18) 13. h3 {[%emt 0:00:50] BESTDEEP} O-O {[%emt 0:03:22] [#] CPLX 3.9 0 (Bd6-f4) (=9)} 14. Be4 $146 {[%emt 0:08:59] CPLX 4.1 36 (Nd2-e4) (=10)} ({Predecessor:} 14. Ne4 Nf6 15. Nxd6 cxd6 16. a4 Rac8 17. Ba3 Qg5 18. g3 Ne8 19. a5 Qe7 20. Rb1 {½-½ (58) Sitorus,Y (2411)-Ilyasov,A (2395) ICCF email 2018}) 14... Bxe4 {[%emt 0:04:45] CPLX 4.2} 15. Nxe4 {[%emt 0:00:33] RECAPT} Rfd8 {[%emt 0:17:58] CPLX 3.3 19 (Rf8-e8) (=9)} 16. Qf3 {[%emt 0:04:43] CPLX 3.2 3 (a2-a4) (=8)} e5 {[%emt 0:05:01] CPLX 3.8 5 (Qh4-e7) (=9)} 17. Be3 {[%emt 0:06:04] CPLX 3.3 15 (a2-a4) (=8)} Bf8 {[%emt 0:02:43] CPLX 3.3 13 (Rd8-e8) (=9)} 18. Rad1 {[%emt 0:03:43] CPLX 3.1 5 (a2-a4) (=8)} Nf6 {[%emt 0:04:03] RELBLUND 54 (Rd8-e8) (=14)} (18... Re8 $11) 19. Ng3 {[%emt 0:05:44] White is more active. CPLX 3.0 20 (Be3-c1) (=9)} e4 {[%emt 0:03:01] CPLX 2.8} 20. Qe2 {[%emt 0:11:04] CPLX 2.8 22 (Qf3-f4) (=10)} g6 {[%emt 0:02:23] CPLX 2.4} 21. d5 {[%emt 0:16:10] CPLX 2.3 12 (Ng3-f1) (=10)} c5 {[%emt 0:03:18] Prevents Bd4. CPLX 2.6 2 (Nf6-e8) (=11)} 22. dxc6 {[%emt 0:02:42] Hoping for Rxd8. EASY} Rdc8 {[%emt 0:00:35] CPLX 3.2} 23. c5 {[%emt 0:04:01] CPLX 2.9 0 (Qe2-c2) (=9)} Rxc6 {[%emt 0:01:20] EASY} 24. cxb6 {[%emt 0:01:18] CPLX 2.7} axb6 {[%emt 0:00:09] RECAPT} 25. Qb5 {[%emt 0:01:43][%csl LRb6,LRc6] BESTDEEP} Re6 {[%emt 0:05:11] CPLX 3.1 21 (Rc6xc3) (=9)} 26. c4 {[%emt 0:05:27] CPLX 2.9 28 (Qb5-c4) (=9)} Bc5 {[%emt 0:18:22] CPLX 2.9 39 (Nf6-e8) (=11)} 27. Bxc5 {[%emt 0:00:49] EASY} bxc5 {[%emt 0:00:05] RECAPT} 28. Qxc5 {[%emt 0:01:39] RECAPT} Qf4 {[%emt 0:01:21] Inhibits Rd6. CPLX 2.8 0 (Kg8-g7) (=10)} 29. Ne2 {[%emt 0:04:22] CPLX 2.9} Qb8 {[%emt 0:04:10] CPLX 3.4 23 (Qf4-g5) (=11)} 30. Qe3 {[%emt 0:02:24] CPLX 2.8 19 (Ne2-c3) (=8)} Rxa2 {[%emt 0:02:25] CPLX 2.5 12 (Re6-c6) (=11)} 31. Nd4 {[%emt 0:00:55] EASY} Re8 {[%emt 0:03:15] CPLX 3.2 4 (Re6-d6) (=10)} 32. Qxh6 {[%emt 0:01:11] BESTDEEP} Qe5 {[%emt 0:01:22] Inhibits Nf5. CPLX 4.4} 33. Qe3 {[%emt 0:00:16] BESTDEEP} Rc8 {[%emt 0:03:35] Against Nc6. CPLX 3.2 0 (Ra2-a4) (=9)} 34. Rc1 {[%emt 0:02:14] CPLX 3.3 7 (Nd4-f3) (=7)} Ra4 {[%emt 0:01:58] [#] CPLX 3.3 7 (Qe5-c5) (=9)} 35. Nf3 $1 {[%emt 0:02:18] DEEPSTRONG} Qb2 {[%emt 0:01:02] CPLX 3.1 11 (Qe5-a5) (=9)} 36. Ng5 {[%emt 0:00:58] CPLX 3.1 85 (Re1-e2) (=10)} (36. Re2 $16 Qb7 37. Nd2) 36... Ra3 {[%emt 0:02:55] RELBLUND 136 (Ra4xc4) (=14)} (36... Raxc4 $11 37. Rxc4 Rxc4) 37. Re2 $16 {[%emt 0:01:09][%cal Be1e2,Be2b2,Bb2b7][%mdl 32] BESTDEEP} Rxe3 {[%emt 0:05:32] DEEPSTRONG} 38. Rxb2 {[%emt 0:00:07] EASY} Rd3 {[%emt 0:00:03] CPLX 2.2} 39. Rb7 {[%emt 0:00:36] EASY} Nd7 {[%emt 0:02:07] CPLX 2.1 35 (e4-e3) (=14)} 40. Nxe4 {[%emt 0:00:25][%cal Ob7d7] [#] Strongly threatening Rxd7! EASY} Rc6 {[%emt 0:00:16] CPLX 2.2 8 (Rd3-d4) (=14)} 41. Ng5 {[%emt 0:02:37] BESTDEEP} Rc5 {[%emt 0:00:31] CPLX 2.2 43 (Rd3-d6) (=14)} 42. h4 {[%emt 0:00:30] CPLX 2.5} Rd4 {[%emt 0:00:41] CPLX 2.3 40 (Rc5-c8) (=15)} 43. Nf3 {[%emt 0:01:33] CPLX 2.4 74 (g2-g3) (=10)} Rd6 {[%emt 0:00:28] CPLX 2.4} 44. Re1 {[%emt 0:00:40] CPLX 2.0 12 (g2-g3) (=10)} Kf8 {[%emt 0:00:31] Prevents Re8+. BESTDEEP} 45. Re4 {[%emt 0:00:41] CPLX 2.1} Rf5 {[%emt 0:00:21] CPLX 2.1 7 (f7-f5) (=14)} 46. Rc7 {[%emt 0:01:21] BESTDEEP} Nc5 {[%emt 0:00:19] CPLX 2.3 62 (Rf5-c5) (=15)} (46... Rc5 $142 47. Ra7 f5 48. Ra8+ Kf7) 47. Rd4 {[%emt 0:00:37] CPLX 2.5 27 (Re4-e5) (=10)} Rb6 {[%emt 0:00:28] CPLX 2.6 55 (Rd6xd4) (=16)} 48. Ng5 {[%emt 0:00:57] BESTDEEP} Ne6 {[%emt 0:00:47] CPLX 2.4} 49. Nxe6+ {[%emt 0:00:45] CPLX 3.0} Rxe6 $18 {[%emt 0:00:03][%mdl 4096] Endgame KRR-KRR. RECAPT} 50. f4 $2 {[%emt 0:01:38] RELBLUND 196 (g2-g4) (=14)} (50. g4 $18 {and White stays clearly on top.} Rfe5 51. Rdd7) 50... Re2 $16 {[%emt 0:00:36] CPLX 2.0=>BLUNDERREACT} 51. Kh2 {[%emt 0:01:01] Black must now prevent Kg3. BESTDEEP} Rc2 {[%emt 0:00:38] This costs Black the game. CPLX 2.0 143 (Rf5-a5) (=18)} (51... Ra5 $16) 52. Kh3 {[%emt 0:00:48] CPLX 2.0 22 (Kh2-g3) (=14)} Rc3+ {[%emt 0:00:26] CPLX 2.0 22 (Rf5-f6) (=18)} 53. Kg4 {[%emt 0:00:42] CPLX 2.0} Kg7 {[%emt 0:00:53] BESTDEEP} 54. Rdd7 {[%emt 0:00:19] CPLX 2.5 14 (Rd4-d6) (=13)} Kg8 $2 {[%emt 0:00:22] CPLX 2.6 331 (Rf5-f6) (=25)} (54... Rf6 {is tougher.} 55. Re7 Rd3) 55. h5 $18 {[%emt 0:00:59][%cal Bh4h5,Bh5h6][%mdl 32] aiming for hxg6. DEEPSTRONG=>BLUNDERREACT} Rf6 {[%emt 0:00:40] BEVAL 400 (Kg8-g7) (=33)} (55... Kg7 $142 56. hxg6 Kxg6 57. Rd6+ Rf6) 56. h6 {[%emt 0:00:25] BEVAL} Rc2 {[%emt 0:00:27] BEVAL 400 (Rf6-f5) (=40)} 57. g3 $2 {[%emt 0:00:16] RELBLUND 400 (Rd7-d8) (=21)} (57. Rd8+ Kh7 58. Rcc8 Rxf4+ 59. Kxf4 Kxh6 60. c5) 57... Kh7 $2 {[%emt 0:00:34] BEVAL 400 (Rf6-f5) (=48)} (57... Rf5 58. Re7 Kh7 59. Rxf7+ Rxf7 60. Rxf7+ Kxh6) 58. Rxf7+ {[%emt 0:00:07] RELBLUND=>BLUNDERREACT} Rxf7 {[%emt 0:00:02] BEVAL} 59. Rxf7+ {[%emt 0:00:08] BEVAL} Kxh6 {[%emt 0:00:02] KR-KR. BEVAL} 60. Rc7 {[%emt 0:00:07] White wants to mate with c5. BEVAL} Rc3 {[%emt 0:00:19] RELBLUND 400 (g6-g5) (=53)} 61. c5 {[%emt 0:00:19][%cal Bc4c5,Bc5c6,Bc6c7][%mdl 32]} Rc4 {[%emt 0:00:13]} 62. c6 {[%emt 0:00:38]} Rc3 {[%emt 0:00:49]} 63. Rc8 {[%emt 0:00:15]} Kg7 {[%emt 0:00:17]} 64. c7 {[%emt 0:00:22]} Kh7 {[%emt 0:00:08]} 65. Kh4 {[%emt 0:00:23]} Kg7 {[%emt 0:00:22]} 66. g4 {[%emt 0:00:19]} Rc4 {[%emt 0:00:58]} 67. Kg3 {[%emt 0:00:11]} Rc3+ {[%emt 0:00:17]} 68. Kf2 {[%emt 0:00:07] Weighted Error Value: White=0.27 (precise) /Black=0.37} (68. Kg2 $142 Rc4 69. Kf3) 1-0